[Event "*** Titled Tuesday Blitz"]
[Site "Chess.com"]
[Date "2020.10.27"]
[Round "5"]
[White "zverr1"]
[Black "BikingBrian"]
[Result "1-0"]
[WhiteElo "2460"]
[BlackElo "2262"]
[TimeControl "180+1"]
[EndTime "10:55:19 PDT"]
[Termination "zverr1 won by resignation"]

1. e4 {[%clk 0:03:00.9]} 1... c5 {[%clk 0:02:58.5]} 2. Nf3 {[%clk 0:03:00.9]}
2... g6 {[%clk 0:02:58.8]} 3. h4 {[%clk 0:03:00.4]} 3... h5 {[%clk 0:02:57.9]}
4. c3 {[%clk 0:02:58.7]} 4... Bg7 {[%clk 0:02:51.3]} 5. d4 {[%clk 0:02:57.6]}
5... cxd4 {[%clk 0:02:52.2]} 6. cxd4 {[%clk 0:02:58.5]} 6... d5 {[%clk
0:02:52.2]} 7. exd5 {[%clk 0:02:57.9]} 7... Nf6 {[%clk 0:02:51.5]} 8. Bb5+
{[%clk 0:02:56.8]} 8... Nbd7 {[%clk 0:02:47.3]} 9. Nc3 {[%clk 0:02:54.7]} 9...
O-O {[%clk 0:02:47]} 10. Bg5 {[%clk 0:02:52]} 10... Nb6 {[%clk 0:02:45.5]} 11.
Ne5 {[%clk 0:02:42.8]} 11... Nfxd5 {[%clk 0:02:30.8]} 12. a4 {[%clk 0:02:26.5]}
12... Bf5 {[%clk 0:01:49.3]} 13. a5 {[%clk 0:02:07.2]} 13... Nxc3 {[%clk
0:01:48.5]} 14. bxc3 {[%clk 0:02:06.5]} 14... Nd5 {[%clk 0:01:42.2]} 15. Bd2
{[%clk 0:02:00.4]} 15... f6 {[%clk 0:01:30.8]} 16. Nc4 {[%clk 0:01:48.1]} 16...
a6 {[%clk 0:01:26.4]} 17. Ba4 {[%clk 0:01:48]} 17... b5 {[%clk 0:01:23.9]} 18.
axb6 {[%clk 0:01:47.8]} 18... Nxb6 {[%clk 0:01:24.2]} 19. Nxb6 {[%clk
0:01:37.1]} 19... Qxb6 {[%clk 0:01:24.3]} 20. O-O {[%clk 0:01:37.8]} 20... Kh7
{[%clk 0:01:08.9]} 21. Re1 {[%clk 0:01:34.7]} 21... e5 {[%clk 0:01:07.6]} 22.
dxe5 {[%clk 0:01:31.6]} 22... fxe5 {[%clk 0:01:06.8]} 23. Be3 {[%clk 0:01:32.2]}
23... Qc7 {[%clk 0:01:04.2]} 24. Qb3 {[%clk 0:01:22.2]} 24... Rab8 {[%clk
0:01:00.4]} 25. Qa3 {[%clk 0:01:22.3]} 25... Rfc8 {[%clk 0:00:57.9]} 26. Rec1
{[%clk 0:01:08.3]} 26... Be6 {[%clk 0:00:48.7]} 27. Bc2 {[%clk 0:01:06.1]} 27...
Bc4 {[%clk 0:00:40.8]} 28. Be4 {[%clk 0:00:59]} 28... Bf8 {[%clk 0:00:39.9]} 29.
Qa5 {[%clk 0:00:55.8]} 29... Qf7 {[%clk 0:00:27.5]} 30. Qxe5 {[%clk 0:00:50.8]}
30... Re8 {[%clk 0:00:22.6]} 31. Qxh5+ {[%clk 0:00:46.5]} 31... Kg8 {[%clk
0:00:15.7]} 32. Bxg6 {[%clk 0:00:46.3]} 32... Qg7 {[%clk 0:00:11.5]} 33. Bd4
{[%clk 0:00:46.1]} 33... Qh6 {[%clk 0:00:10.1]} 34. Bf7+ {[%clk 0:00:45.2]}
34... Kh7 {[%clk 0:00:09.5]} 35. Qf5+ {[%clk 0:00:43.6]} 1-0

[Event "*** Titled Tuesday Blitz"]
[Site "Chess.com"]
[Date "2020.10.27"]
[Round "5"]
[White "mapleaff"]
[Black "ChessQueen"]
[Result "0-1"]
[WhiteElo "2403"]
[BlackElo "2734"]
[TimeControl "180+1"]
[EndTime "10:55:26 PDT"]
[Termination "ChessQueen won on time"]

1. d4 {[%clk 0:03:00.9]} 1... Nf6 {[%clk 0:02:59.3]} 2. Nf3 {[%clk 0:03:01.3]}
2... e6 {[%clk 0:02:59.2]} 3. c4 {[%clk 0:03:00.5]} 3... c5 {[%clk 0:02:58.5]}
4. g3 {[%clk 0:02:59.2]} 4... cxd4 {[%clk 0:02:57.7]} 5. Nxd4 {[%clk 0:03:00.1]}
5... d5 {[%clk 0:02:58.3]} 6. Bg2 {[%clk 0:02:58.3]} 6... e5 {[%clk 0:02:58.8]}
7. Nb3 {[%clk 0:02:55.5]} 7... d4 {[%clk 0:02:58.6]} 8. O-O {[%clk 0:02:55.3]}
8... Nc6 {[%clk 0:02:58.9]} 9. e3 {[%clk 0:02:52.5]} 9... Bg4 {[%clk 0:02:51.1]}
10. f3 {[%clk 0:02:51]} 10... Be6 {[%clk 0:02:51.1]} 11. exd4 {[%clk 0:02:44.3]}
11... exd4 {[%clk 0:02:44.6]} 12. Na3 {[%clk 0:02:27.2]} 12... Bxa3 {[%clk
0:02:39.6]} 13. bxa3 {[%clk 0:02:27.3]} 13... O-O {[%clk 0:02:39.8]} 14. Nd2
{[%clk 0:02:08.7]} 14... Ne5 {[%clk 0:02:34]} 15. Qb3 {[%clk 0:01:37.9]} 15...
Qc7 {[%clk 0:02:10.5]} 16. f4 {[%clk 0:01:04.3]} 16... Nxc4 {[%clk 0:02:09.3]}
17. Qxb7 {[%clk 0:01:01.8]} 17... Qxb7 {[%clk 0:02:06.1]} 18. Bxb7 {[%clk
0:01:02.7]} 18... Rab8 {[%clk 0:02:06.7]} 19. f5 {[%clk 0:00:46.7]} 19... Rxb7
{[%clk 0:02:04]} 20. fxe6 {[%clk 0:00:46.7]} 20... fxe6 {[%clk 0:02:04.9]} 21.
Nxc4 {[%clk 0:00:42.7]} 21... Rc7 {[%clk 0:02:02.6]} 22. Ne5 {[%clk 0:00:37.6]}
22... Rc5 {[%clk 0:01:58.7]} 23. Bf4 {[%clk 0:00:14.1]} 23... Rd8 {[%clk
0:01:57.4]} 24. Nd3 {[%clk 0:00:12.2]} 24... Ra5 {[%clk 0:01:55.1]} 25. Be5
{[%clk 0:00:11.2]} 25... Rxa3 {[%clk 0:01:54]} 26. Nc5 {[%clk 0:00:10.4]} 26...
Kf7 {[%clk 0:01:51.3]} 27. Rae1 {[%clk 0:00:10.6]} 27... Rd5 {[%clk 0:01:49.6]}
28. Nxe6 {[%clk 0:00:07.5]} 28... d3 {[%clk 0:01:41.1]} 29. Ng5+ {[%clk
0:00:04.5]} 29... Kg6 {[%clk 0:01:41]} 30. Nf3 {[%clk 0:00:04.2]} 30... d2
{[%clk 0:01:39.1]} 31. Rd1 {[%clk 0:00:04.4]} 31... Ne4 {[%clk 0:01:39.3]} 32.
Bb2 {[%clk 0:00:03.5]} 32... Rxa2 {[%clk 0:01:36.1]} 33. Nh4+ {[%clk 0:00:04]}
33... Kh6 {[%clk 0:01:31.8]} 34. Rb1 {[%clk 0:00:03.8]} 34... Rxb2 {[%clk
0:01:27.4]} 35. Rxb2 {[%clk 0:00:03.2]} 35... d1=Q {[%clk 0:01:27.9]} 36. Rxd1
{[%clk 0:00:03.4]} 36... Rxd1+ {[%clk 0:01:28.4]} 37. Kg2 {[%clk 0:00:03.8]}
37... Rd2+ {[%clk 0:01:28.9]} 38. Rxd2 {[%clk 0:00:04.1]} 38... Nxd2 {[%clk
0:01:29.8]} 39. Kf2 {[%clk 0:00:03.7]} 39... g6 {[%clk 0:01:26.9]} 40. Ke3
{[%clk 0:00:03.2]} 40... Nf1+ {[%clk 0:01:26.9]} 41. Ke2 {[%clk 0:00:03]} 41...
Nxh2 {[%clk 0:01:25.7]} 42. Ng2 {[%clk 0:00:03.4]} 42... Kg5 {[%clk 0:01:23.5]}
43. Ne3 {[%clk 0:00:03]} 43... a5 {[%clk 0:01:19.6]} 44. Nc4 {[%clk 0:00:02.1]}
44... a4 {[%clk 0:01:20]} 45. Kf2 {[%clk 0:00:01.9]} 45... Ng4+ {[%clk
0:01:19.1]} 46. Kf3 {[%clk 0:00:02.4]} 46... h5 {[%clk 0:01:18.2]} 0-1

[Event "*** Titled Tuesday Blitz"]
[Site "Chess.com"]
[Date "2020.10.27"]
[Round "5"]
[White "akanga001"]
[Black "oogee"]
[Result "0-1"]
[WhiteElo "1886"]
[BlackElo "2183"]
[TimeControl "180+1"]
[EndTime "10:55:29 PDT"]
[Termination "oogee won by checkmate"]

1. d4 {[%clk 0:03:00.9]} 1... Nf6 {[%clk 0:02:53.2]} 2. Nf3 {[%clk 0:03:00.2]}
2... g6 {[%clk 0:02:52.4]} 3. c4 {[%clk 0:02:56.4]} 3... Bg7 {[%clk 0:02:50.4]}
4. Nc3 {[%clk 0:02:56.8]} 4... O-O {[%clk 0:02:48.7]} 5. e4 {[%clk 0:02:56.7]}
5... d6 {[%clk 0:02:47.8]} 6. Be2 {[%clk 0:02:56.3]} 6... e5 {[%clk 0:02:45.6]}
7. O-O {[%clk 0:02:56.1]} 7... Nc6 {[%clk 0:02:31.2]} 8. Be3 {[%clk 0:02:54.1]}
8... Ng4 {[%clk 0:02:18]} 9. Bg5 {[%clk 0:02:53.5]} 9... f6 {[%clk 0:02:13.9]}
10. Bc1 {[%clk 0:02:51.4]} 10... Nh6 {[%clk 0:02:09.8]} 11. d5 {[%clk
0:02:45.2]} 11... Ne7 {[%clk 0:02:03]} 12. b4 {[%clk 0:02:43.8]} 12... Nf7
{[%clk 0:01:41.4]} 13. c5 {[%clk 0:02:42.7]} 13... h6 {[%clk 0:01:36.7]} 14.
cxd6 {[%clk 0:02:41.8]} 14... cxd6 {[%clk 0:01:35.5]} 15. Be3 {[%clk 0:02:40.4]}
15... Bd7 {[%clk 0:01:30.2]} 16. Rc1 {[%clk 0:02:39.5]} 16... f5 {[%clk
0:01:14]} 17. g3 {[%clk 0:02:32.4]} 17... f4 {[%clk 0:01:07.5]} 18. gxf4 {[%clk
0:02:31.2]} 18... exf4 {[%clk 0:01:04.4]} 19. Bxf4 {[%clk 0:02:31]} 19... Bh3
{[%clk 0:00:41.1]} 20. Re1 {[%clk 0:02:28.4]} 20... g5 {[%clk 0:00:28.8]} 21.
Be3 {[%clk 0:02:23.5]} 21... g4 {[%clk 0:00:22]} 22. Nd4 {[%clk 0:02:22.5]}
22... Ng6 {[%clk 0:00:19.8]} 23. Ne6 {[%clk 0:02:21.2]} 23... Qh4 {[%clk
0:00:19.6]} 24. Bf1 {[%clk 0:02:07.4]} 24... Be5 {[%clk 0:00:19.3]} 25. f4
{[%clk 0:01:35.1]} 25... gxf3 {[%clk 0:00:17.9]} 26. Bf2 {[%clk 0:01:33.1]}
26... Qh5 {[%clk 0:00:15.5]} 27. Re3 {[%clk 0:00:36.4]} 27... Bxh2+ {[%clk
0:00:14.5]} 28. Kxh2 {[%clk 0:00:31.4]} 28... Bg2+ {[%clk 0:00:14.3]} 29. Kg3
{[%clk 0:00:18.7]} 29... Qh3# {[%clk 0:00:13.8]} 0-1

[Event "*** Titled Tuesday Blitz"]
[Site "Chess.com"]
[Date "2020.10.27"]
[Round "5"]
[White "WuinaterJr"]
[Black "oskariot"]
[Result "0-1"]
[WhiteElo "2512"]
[BlackElo "2723"]
[TimeControl "180+1"]
[EndTime "10:55:30 PDT"]
[Termination "oskariot won by resignation"]

1. d4 {[%clk 0:03:00.9]} 1... Nf6 {[%clk 0:02:59.3]} 2. c4 {[%clk 0:03:00]} 2...
c5 {[%clk 0:02:59.6]} 3. d5 {[%clk 0:02:58.9]} 3... b5 {[%clk 0:03:00.2]} 4.
cxb5 {[%clk 0:02:59]} 4... a6 {[%clk 0:03:00.8]} 5. bxa6 {[%clk 0:02:58.7]} 5...
Bxa6 {[%clk 0:03:01.3]} 6. Nc3 {[%clk 0:02:59]} 6... g6 {[%clk 0:03:01.9]} 7.
Nf3 {[%clk 0:02:58.6]} 7... d6 {[%clk 0:03:01.9]} 8. e4 {[%clk 0:02:58.2]} 8...
Bxf1 {[%clk 0:03:02.8]} 9. Kxf1 {[%clk 0:02:58.5]} 9... Qc8 {[%clk 0:03:03.7]}
10. Qe2 {[%clk 0:02:54.2]} 10... Bg7 {[%clk 0:03:03.2]} 11. h3 {[%clk
0:02:53.4]} 11... O-O {[%clk 0:03:03]} 12. g3 {[%clk 0:02:53.5]} 12... Nbd7
{[%clk 0:03:02.5]} 13. Kg2 {[%clk 0:02:53.7]} 13... Qa6 {[%clk 0:03:02.7]} 14.
Qxa6 {[%clk 0:02:51.5]} 14... Rxa6 {[%clk 0:03:03.6]} 15. Be3 {[%clk 0:02:45.8]}
15... Rb8 {[%clk 0:03:02.7]} 16. Rab1 {[%clk 0:02:35]} 16... Ne8 {[%clk
0:03:01.7]} 17. Rhc1 {[%clk 0:02:18.1]} 17... Nc7 {[%clk 0:02:48.6]} 18. a4
{[%clk 0:02:14.9]} 18... Nb6 {[%clk 0:02:41.1]} 19. b3 {[%clk 0:02:03]} 19...
Bxc3 {[%clk 0:02:39.9]} 20. Rxc3 {[%clk 0:02:02.7]} 20... Nxa4 {[%clk
0:02:40.3]} 21. Rc2 {[%clk 0:01:58.8]} 21... Rab6 {[%clk 0:02:36.1]} 22. Nd2
{[%clk 0:01:55.5]} 22... Rb4 {[%clk 0:02:22.7]} 23. Ra1 {[%clk 0:01:43.6]} 23...
Nb6 {[%clk 0:02:21.1]} 24. Ra7 {[%clk 0:01:43.3]} 24... Nb5 {[%clk 0:02:01.1]}
25. Rxe7 {[%clk 0:01:41.6]} 25... Kg7 {[%clk 0:01:21.7]} 26. h4 {[%clk
0:01:19.6]} 26... h6 {[%clk 0:01:20.3]} 27. Rxc5 {[%clk 0:01:10]} 27... dxc5
{[%clk 0:00:52.9]} 28. Bxc5 {[%clk 0:01:09.9]} 28... Rd4 {[%clk 0:00:51.5]} 29.
Bxd4+ {[%clk 0:01:01.4]} 29... Nxd4 {[%clk 0:00:52.4]} 30. f4 {[%clk 0:00:53.6]}
30... Nb5 {[%clk 0:00:52.4]} 31. Nc4 {[%clk 0:00:49.1]} 31... Kf8 {[%clk
0:00:39.1]} 32. d6 {[%clk 0:00:30.6]} 32... Nxd6 {[%clk 0:00:34]} 33. Rc7 {[%clk
0:00:26.7]} 33... Nbxc4 {[%clk 0:00:30.3]} 34. bxc4 {[%clk 0:00:26.8]} 34...
Nxe4 {[%clk 0:00:30.7]} 35. Kf3 {[%clk 0:00:26.7]} 35... f5 {[%clk 0:00:31.1]}
36. Rh7 {[%clk 0:00:23]} 36... Rb3+ {[%clk 0:00:29.5]} 37. Ke2 {[%clk
0:00:23.2]} 37... Rxg3 {[%clk 0:00:28.6]} 38. Rxh6 {[%clk 0:00:23.2]} 38... Kg7
{[%clk 0:00:28.5]} 0-1

[Event "*** Titled Tuesday Blitz"]
[Site "Chess.com"]
[Date "2020.10.27"]
[Round "5"]
[White "Sergienko_Sergey"]
[Black "Evachess2006"]
[Result "1-0"]
[WhiteElo "2337"]
[BlackElo "1622"]
[TimeControl "180+1"]
[EndTime "10:55:30 PDT"]
[Termination "Sergienko_Sergey won by resignation"]

1. e4 {[%clk 0:02:57.9]} 1... e5 {[%clk 0:02:58.3]} 2. Nf3 {[%clk 0:02:56.8]}
2... Nc6 {[%clk 0:02:49.8]} 3. Bb5 {[%clk 0:02:55.8]} 3... a6 {[%clk 0:02:46.2]}
4. Ba4 {[%clk 0:02:55.4]} 4... Nf6 {[%clk 0:02:45]} 5. Bxc6 {[%clk 0:02:54.8]}
5... dxc6 {[%clk 0:02:35.4]} 6. d3 {[%clk 0:02:54.1]} 6... Bc5 {[%clk
0:02:30.6]} 7. h3 {[%clk 0:02:50.1]} 7... Qe7 {[%clk 0:02:12.5]} 8. Nbd2 {[%clk
0:02:48.4]} 8... O-O {[%clk 0:02:10.4]} 9. Nc4 {[%clk 0:02:45.2]} 9... Bd6
{[%clk 0:02:07.5]} 10. O-O {[%clk 0:02:43.8]} 10... Be6 {[%clk 0:01:39.4]} 11.
Ne3 {[%clk 0:02:28]} 11... Rfe8 {[%clk 0:01:26]} 12. b3 {[%clk 0:02:21.3]} 12...
Rad8 {[%clk 0:01:26.2]} 13. Bb2 {[%clk 0:02:21]} 13... Bc5 {[%clk 0:01:02.4]}
14. Nxe5 {[%clk 0:02:03.2]} 14... Nxe4 {[%clk 0:00:52.1]} 15. Qe2 {[%clk
0:01:31.9]} 15... Nf6 {[%clk 0:00:44]} 16. Qf3 {[%clk 0:01:28.7]} 16... Bd5
{[%clk 0:00:41.3]} 17. Nxd5 {[%clk 0:01:25.3]} 17... cxd5 {[%clk 0:00:42]} 18.
Rfe1 {[%clk 0:01:21.1]} 18... Qd6 {[%clk 0:00:37]} 19. Re2 {[%clk 0:01:11.7]}
19... d4 {[%clk 0:00:33.8]} 20. Rae1 {[%clk 0:01:04.5]} 20... Qd5 {[%clk
0:00:30.3]} 21. Qxd5 {[%clk 0:00:54.8]} 21... Nxd5 {[%clk 0:00:31.2]} 22. a3
{[%clk 0:00:44.9]} 22... f6 {[%clk 0:00:29.5]} 23. Nf3 {[%clk 0:00:39]} 23...
Rxe2 {[%clk 0:00:24.8]} 24. Rxe2 {[%clk 0:00:38.5]} 24... Nf4 {[%clk 0:00:25.7]}
25. Re4 {[%clk 0:00:35.5]} 25... g5 {[%clk 0:00:22.2]} 26. g3 {[%clk 0:00:31.4]}
26... Nxh3+ {[%clk 0:00:21.3]} 27. Kg2 {[%clk 0:00:30.8]} 27... g4 {[%clk
0:00:14.5]} 28. Rxg4+ {[%clk 0:00:29.4]} 28... Ng5 {[%clk 0:00:12.7]} 29. Nxg5
{[%clk 0:00:29.2]} 29... fxg5 {[%clk 0:00:13]} 30. Rxg5+ {[%clk 0:00:29.4]}
30... Kf7 {[%clk 0:00:13.4]} 31. Rxc5 {[%clk 0:00:29.2]} 1-0

[Event "*** Titled Tuesday Blitz"]
[Site "Chess.com"]
[Date "2020.10.27"]
[Round "5"]
[White "Zhuu96"]
[Black "Meri-Arabidze"]
[Result "1-0"]
[WhiteElo "2884"]
[BlackElo "2677"]
[TimeControl "180+1"]
[EndTime "10:55:31 PDT"]
[Termination "Zhuu96 won by resignation"]

1. d4 {[%clk 0:03:00.9]} 1... f5 {[%clk 0:02:59]} 2. g3 {[%clk 0:02:57.9]} 2...
Nf6 {[%clk 0:02:58.8]} 3. Bg2 {[%clk 0:02:56]} 3... e6 {[%clk 0:02:59.1]} 4. Nd2
{[%clk 0:02:53.7]} 4... d5 {[%clk 0:02:58.6]} 5. b3 {[%clk 0:02:53.6]} 5... Bd6
{[%clk 0:02:58.2]} 6. Bb2 {[%clk 0:02:53.5]} 6... O-O {[%clk 0:02:58.4]} 7. Ngf3
{[%clk 0:02:53.4]} 7... Qe7 {[%clk 0:02:57.4]} 8. c4 {[%clk 0:02:52.5]} 8... c6
{[%clk 0:02:57.5]} 9. O-O {[%clk 0:02:51.6]} 9... a5 {[%clk 0:02:57.7]} 10. Ne5
{[%clk 0:02:51.4]} 10... Na6 {[%clk 0:02:55.6]} 11. Ndf3 {[%clk 0:02:48.6]}
11... Ne4 {[%clk 0:02:44.9]} 12. a3 {[%clk 0:02:48.4]} 12... Bd7 {[%clk
0:02:39.7]} 13. Qe1 {[%clk 0:02:45.2]} 13... b6 {[%clk 0:02:20.6]} 14. Qc1
{[%clk 0:02:42.3]} 14... Rfc8 {[%clk 0:02:17.8]} 15. Rd1 {[%clk 0:02:37.6]}
15... Be8 {[%clk 0:02:17.7]} 16. Qe3 {[%clk 0:02:34.5]} 16... Bh5 {[%clk
0:02:13.4]} 17. Nd3 {[%clk 0:02:34.4]} 17... a4 {[%clk 0:02:02.2]} 18. cxd5
{[%clk 0:02:25.6]} 18... cxd5 {[%clk 0:01:44.7]} 19. bxa4 {[%clk 0:02:23.5]}
19... Be8 {[%clk 0:01:44.7]} 20. Nfe5 {[%clk 0:02:20.9]} 20... Bxa4 {[%clk
0:01:43.2]} 21. Rdc1 {[%clk 0:02:20.6]} 21... Be8 {[%clk 0:01:34.2]} 22. f3
{[%clk 0:02:17.1]} 22... Nf6 {[%clk 0:01:32.5]} 23. Nf4 {[%clk 0:02:15.7]} 23...
Nc7 {[%clk 0:01:26.4]} 24. h4 {[%clk 0:02:03.2]} 24... Nb5 {[%clk 0:01:18.6]}
25. Rxc8 {[%clk 0:02:02.3]} 25... Rxc8 {[%clk 0:01:17]} 26. a4 {[%clk
0:02:02.8]} 26... Na7 {[%clk 0:01:17.1]} 27. a5 {[%clk 0:02:03.1]} 27... bxa5
{[%clk 0:01:04.4]} 28. Rxa5 {[%clk 0:02:02.5]} 28... Nc6 {[%clk 0:01:04.4]} 29.
Nxc6 {[%clk 0:02:02.1]} 29... Bxc6 {[%clk 0:01:05.3]} 30. Bh3 {[%clk 0:01:55.3]}
30... Bd7 {[%clk 0:00:54.6]} 31. Ba3 {[%clk 0:01:52]} 31... Bxa3 {[%clk
0:00:50.2]} 32. Qxa3 {[%clk 0:01:52]} 32... Qxa3 {[%clk 0:00:44.2]} 33. Rxa3
{[%clk 0:01:52]} 33... Kf7 {[%clk 0:00:43.8]} 34. Nd3 {[%clk 0:01:51.6]} 34...
Ke7 {[%clk 0:00:43.9]} 35. Ra7 {[%clk 0:01:50.7]} 35... Rc4 {[%clk 0:00:38.3]}
36. Ne5 {[%clk 0:01:50.3]} 36... Rc2 {[%clk 0:00:37.1]} 37. g4 {[%clk
0:01:49.9]} 37... fxg4 {[%clk 0:00:21.5]} 38. fxg4 {[%clk 0:01:49]} 38... Kd6
{[%clk 0:00:19.7]} 39. g5 {[%clk 0:01:48.5]} 39... Bb5 {[%clk 0:00:15.6]} 40.
gxf6 {[%clk 0:01:43.6]} 40... gxf6 {[%clk 0:00:15.9]} 41. Nf7+ {[%clk 0:01:44]}
41... Kc6 {[%clk 0:00:16.1]} 42. Bxe6 {[%clk 0:01:42]} 42... Bxe2 {[%clk
0:00:14.9]} 43. Nd8+ {[%clk 0:01:36.8]} 43... Kb6 {[%clk 0:00:15.2]} 44. Rb7+
{[%clk 0:01:36.6]} 44... Ka6 {[%clk 0:00:15.7]} 45. Bxd5 {[%clk 0:01:36.1]}
45... Bd3 {[%clk 0:00:09.9]} 46. Ne6 {[%clk 0:01:32.5]} 46... Rc1+ {[%clk
0:00:08.4]} 47. Kf2 {[%clk 0:01:32.1]} 47... Bc4 {[%clk 0:00:05]} 48. Nc5+
{[%clk 0:01:30.8]} 48... Ka5 {[%clk 0:00:05.3]} 49. Bxc4 {[%clk 0:01:30.7]}
49... Rxc4 {[%clk 0:00:05.5]} 50. Rxh7 {[%clk 0:01:30.8]} 50... Rxd4 {[%clk
0:00:05.4]} 51. Nb3+ {[%clk 0:01:30.4]} 1-0

[Event "*** Titled Tuesday Blitz"]
[Site "Chess.com"]
[Date "2020.10.27"]
[Round "5"]
[White "sjam6687"]
[Black "TST2014"]
[Result "1-0"]
[WhiteElo "2695"]
[BlackElo "2494"]
[TimeControl "180+1"]
[EndTime "10:55:32 PDT"]
[Termination "sjam6687 won by checkmate"]

1. d4 {[%clk 0:03:00.9]} 1... Nf6 {[%clk 0:02:59.2]} 2. c4 {[%clk 0:03:01.3]}
2... c5 {[%clk 0:02:58.6]} 3. d5 {[%clk 0:03:01.2]} 3... b5 {[%clk 0:02:58.4]}
4. cxb5 {[%clk 0:02:59.2]} 4... a6 {[%clk 0:02:58.3]} 5. b6 {[%clk 0:02:56.9]}
5... d6 {[%clk 0:02:53.2]} 6. Nc3 {[%clk 0:02:55.3]} 6... Nbd7 {[%clk
0:02:52.8]} 7. e4 {[%clk 0:02:55.3]} 7... g6 {[%clk 0:02:52.4]} 8. Nf3 {[%clk
0:02:55.2]} 8... Bg7 {[%clk 0:02:52.2]} 9. a4 {[%clk 0:02:55]} 9... a5 {[%clk
0:02:48]} 10. Be2 {[%clk 0:02:50.5]} 10... O-O {[%clk 0:02:41.7]} 11. O-O {[%clk
0:02:50.8]} 11... Ba6 {[%clk 0:02:41.2]} 12. Qc2 {[%clk 0:02:46.1]} 12... Bxe2
{[%clk 0:02:36.9]} 13. Qxe2 {[%clk 0:02:47]} 13... Qxb6 {[%clk 0:02:36.6]} 14.
Bf4 {[%clk 0:02:44]} 14... Ng4 {[%clk 0:02:34.3]} 15. Nb5 {[%clk 0:02:41.7]}
15... Nge5 {[%clk 0:02:23.9]} 16. Bxe5 {[%clk 0:02:38.6]} 16... Nxe5 {[%clk
0:02:23.5]} 17. Nxe5 {[%clk 0:02:35.3]} 17... Bxe5 {[%clk 0:02:24.4]} 18. f4
{[%clk 0:02:34.8]} 18... Bg7 {[%clk 0:02:13.6]} 19. Kh1 {[%clk 0:02:30.3]} 19...
Rac8 {[%clk 0:02:09.4]} 20. h4 {[%clk 0:02:22.8]} 20... c4 {[%clk 0:02:05.8]}
21. Rac1 {[%clk 0:02:20.7]} 21... Qc5 {[%clk 0:02:04.7]} 22. f5 {[%clk
0:02:18.3]} 22... Qb4 {[%clk 0:02:03.8]} 23. Na7 {[%clk 0:02:08.8]} 23... Rc7
{[%clk 0:01:49.1]} 24. Nc6 {[%clk 0:02:07.6]} 24... Qxa4 {[%clk 0:01:42.2]} 25.
Rxc4 {[%clk 0:02:04.5]} 25... Qb5 {[%clk 0:01:42.1]} 26. g4 {[%clk 0:01:57.5]}
26... Rfc8 {[%clk 0:01:27.6]} 27. Nxe7+ {[%clk 0:01:54.1]} 27... Kh8 {[%clk
0:01:21.7]} 28. Nxc8 {[%clk 0:01:51.8]} 28... Qxc4 {[%clk 0:01:15.2]} 29. Qxc4
{[%clk 0:01:51.1]} 29... Rxc4 {[%clk 0:01:16.1]} 30. Nxd6 {[%clk 0:01:51.4]}
30... Rc2 {[%clk 0:01:12.4]} 31. Nxf7+ {[%clk 0:01:47.9]} 31... Kg8 {[%clk
0:01:11.9]} 32. f6 {[%clk 0:01:42.6]} 32... Kxf7 {[%clk 0:00:58.8]} 33. fxg7+
{[%clk 0:01:41.9]} 33... Kxg7 {[%clk 0:00:59.7]} 34. e5 {[%clk 0:01:41.5]} 34...
Rxb2 {[%clk 0:00:52.3]} 35. e6 {[%clk 0:01:37]} 35... Re2 {[%clk 0:00:51.9]} 36.
Rf7+ {[%clk 0:01:31.9]} 36... Kg8 {[%clk 0:00:50.4]} 37. Rd7 {[%clk 0:01:31.6]}
37... a4 {[%clk 0:00:48.3]} 38. e7 {[%clk 0:01:28.5]} 38... Kf7 {[%clk
0:00:46.5]} 39. d6 {[%clk 0:01:28.1]} 39... a3 {[%clk 0:00:45.4]} 40. Rd8 {[%clk
0:01:26.5]} 40... a2 {[%clk 0:00:42.8]} 41. Rf8+ {[%clk 0:01:18.1]} 41... Kg7
{[%clk 0:00:41.7]} 42. Rf1 {[%clk 0:01:17.7]} 42... Rf2 {[%clk 0:00:27.6]} 43.
Ra1 {[%clk 0:01:14.1]} 43... Rb2 {[%clk 0:00:27.2]} 44. e8=Q {[%clk 0:01:11.5]}
44... Rb1+ {[%clk 0:00:27.1]} 45. Qe1 {[%clk 0:01:10.8]} 45... Rxa1 {[%clk
0:00:20]} 46. Qxa1+ {[%clk 0:01:10]} 46... Kh6 {[%clk 0:00:20.4]} 47. d7 {[%clk
0:01:09.3]} 47... g5 {[%clk 0:00:19.7]} 48. Qf6# {[%clk 0:01:08.2]} 1-0

[Event "*** Titled Tuesday Blitz"]
[Site "Chess.com"]
[Date "2020.10.27"]
[Round "5"]
[White "Keures"]
[Black "PowerThinking2650"]
[Result "0-1"]
[WhiteElo "2227"]
[BlackElo "2391"]
[TimeControl "180+1"]
[EndTime "10:55:32 PDT"]
[Termination "PowerThinking2650 won by resignation"]

1. d4 {[%clk 0:03:00.9]} 1... Nf6 {[%clk 0:02:59.8]} 2. c4 {[%clk 0:03:00.7]}
2... g6 {[%clk 0:02:59.8]} 3. Nc3 {[%clk 0:03:00]} 3... Bg7 {[%clk 0:03:00]} 4.
e4 {[%clk 0:03:00.1]} 4... d6 {[%clk 0:03:00.6]} 5. Nf3 {[%clk 0:03:00.1]} 5...
O-O {[%clk 0:03:00.3]} 6. h3 {[%clk 0:03:00.6]} 6... e5 {[%clk 0:02:57.5]} 7. d5
{[%clk 0:03:00.7]} 7... a5 {[%clk 0:02:57.6]} 8. g4 {[%clk 0:03:00.6]} 8... Na6
{[%clk 0:02:57.2]} 9. Be3 {[%clk 0:02:59.5]} 9... c6 {[%clk 0:02:51.1]} 10. Be2
{[%clk 0:02:56.8]} 10... Nc5 {[%clk 0:02:34.8]} 11. Nd2 {[%clk 0:02:55.5]} 11...
Nfd7 {[%clk 0:02:32.8]} 12. g5 {[%clk 0:02:52.8]} 12... a4 {[%clk 0:02:31.4]}
13. h4 {[%clk 0:02:52.9]} 13... Qa5 {[%clk 0:02:15.8]} 14. Qc2 {[%clk 0:02:50]}
14... Nb6 {[%clk 0:02:13.6]} 15. O-O-O {[%clk 0:02:40.5]} 15... cxd5 {[%clk
0:02:07.2]} 16. cxd5 {[%clk 0:02:36.6]} 16... Bd7 {[%clk 0:02:06.5]} 17. Kb1
{[%clk 0:02:33.4]} 17... Rfc8 {[%clk 0:01:58.5]} 18. Rc1 {[%clk 0:02:28.3]}
18... Na6 {[%clk 0:01:58.3]} 19. Qd1 {[%clk 0:02:08.9]} 19... a3 {[%clk
0:01:41.1]} 20. Qb3 {[%clk 0:01:42.9]} 20... axb2 {[%clk 0:01:39.6]} 21. Kxb2
{[%clk 0:01:30]} 21... Rxc3 {[%clk 0:01:30.9]} 22. Rxc3 {[%clk 0:01:28.2]} 22...
Na4+ {[%clk 0:01:29.5]} 23. Kc2 {[%clk 0:01:16.7]} 23... Nxc3 {[%clk 0:01:09.7]}
24. Qxc3 {[%clk 0:01:16.3]} 24... Rc8 {[%clk 0:01:04.3]} 25. Nc4 {[%clk
0:01:07.4]} 25... Qxc3+ {[%clk 0:01:01.2]} 26. Kxc3 {[%clk 0:01:05.4]} 26... b5
{[%clk 0:01:02.1]} 27. Rb1 {[%clk 0:00:53.1]} 27... f5 {[%clk 0:00:53.5]} 28. f3
{[%clk 0:00:47.9]} 28... fxe4 {[%clk 0:00:46.9]} 29. fxe4 {[%clk 0:00:48.8]}
29... bxc4 {[%clk 0:00:47.4]} 30. Rb6 {[%clk 0:00:46.8]} 30... Nc5 {[%clk
0:00:44.6]} 31. Bxc5 {[%clk 0:00:44.1]} 31... dxc5 {[%clk 0:00:31.7]} 32. Rb7
{[%clk 0:00:37.4]} 32... Bh3 {[%clk 0:00:27]} 33. Bxc4 {[%clk 0:00:32]} 33...
Bf8 {[%clk 0:00:24.5]} 34. Rd7 {[%clk 0:00:16.8]} 34... Bxd7 {[%clk 0:00:23.5]}
0-1